bitfinex-derivatives/quotes_BTCF0:USTF0_20250609
["timestamp","ask_amount","ask_price","bid_price","bid_amount"]
[1749452623410,1.42811848,105660.0,105650.0,0.40453076]
[1749452624113,1.42811848,105660.0,105650.0,0.35398801]
[1749452624308,1.42811848,105660.0,105650.0,0.3244773]
[1749452628018,1.42811848,105660.0,105650.0,0.3387174]
[1749452629308,1.42811848,105660.0,105650.0,0.33871461]
[1749452629509,1.42811848,105660.0,105650.0,0.3244773]
[1749452629710,1.42811848,105660.0,105650.0,0.33871457]
[1749452630016,1.42811848,105660.0,105650.0,0.33871438]
[1749452630919,1.42811848,105660.0,105650.0,0.3244773]
[1749452631121,1.85735848,105660.0,105650.0,0.33872543]
[1749452631417,1.85735848,105660.0,105650.0,0.33872541]
[1749452631625,1.85735848,105660.0,105650.0,0.33872538]
[1749452631822,1.85330188,105660.0,105650.0,0.33872538]
[1749452632819,1.85735848,105660.0,105650.0,0.33872538]
[1749452633013,1.85735848,105660.0,105650.0,0.3244773]
[1749452633319,1.85735848,105660.0,105650.0,0.33875614]
[1749452633818,1.85330188,105660.0,105650.0,0.33875614]
[1749452634317,1.85330188,105660.0,105650.0,0.33875756]
[1749452634718,1.85330188,105660.0,105650.0,0.3244773]
[1749452634919,1.85330188,105660.0,105650.0,0.33875755]
[1749452635520,1.85330188,105660.0,105650.0,0.3244773]
[1749452635728,1.85330188,105660.0,105650.0,0.33875766]
[1749452636028,1.85330188,105660.0,105650.0,0.33875796]
[1749452636208,1.85330188,105660.0,105650.0,0.3244773]
[1749452636414,1.85330188,105660.0,105650.0,0.33875796]
[1749452636623,1.85330188,105660.0,105650.0,0.33875803]
[1749452636921,1.85735848,105660.0,105650.0,0.33875798]
[1749452637614,1.85735848,105660.0,105650.0,0.33875844]
[1749452637815,1.85735848,105660.0,105650.0,0.33875892]
[1749452638016,1.85735848,105660.0,105650.0,0.33875893]
[1749452638217,1.85735848,105660.0,105650.0,0.3244773]
[1749452638413,1.85735848,105660.0,105650.0,0.33875656]
[1749452639726,1.85735848,105660.0,105650.0,0.33875701]
[1749452640021,1.85735848,105660.0,105650.0,0.33875699]
[1749452640524,1.85735848,105660.0,105650.0,0.33875706]
[1749452641418,1.85735848,105660.0,105650.0,0.45667188]
[1749452642021,1.85735848,105660.0,105650.0,0.44239061]
[1749452642327,1.85735848,105660.0,105650.0,0.45667188]
[1749452642925,1.85735848,105660.0,105650.0,0.45667324]
[1749452643122,1.49655848,105660.0,105650.0,0.44239061]
[1749452643320,1.49655848,105660.0,105650.0,0.45667401]
[1749452643321,1.85735848,105660.0,105650.0,0.45667401]
[1749452643521,1.85735848,105660.0,105650.0,0.45667759]
[1749452643724,1.85735848,105660.0,105650.0,0.44239061]
[1749452644029,1.85735848,105660.0,105650.0,0.45667759]
[1749452644427,1.85735848,105660.0,105650.0,0.36827499]
[1749452646628,1.85735848,105660.0,105650.0,0.35398801]
[1749452647216,1.85735848,105660.0,105650.0,0.36827721]
[1749452647422,1.85735848,105660.0,105650.0,0.35398801]
[1749452647720,1.85735848,105660.0,105650.0,0.36828202]
[1749452648130,1.85330188,105660.0,105650.0,0.36828202]
[1749452648431,1.85330188,105660.0,105650.0,0.35398801]
[1749452649021,1.85735848,105660.0,105650.0,0.35398801]
[1749452649226,1.85735848,105660.0,105650.0,0.36828678]
[1749452650522,1.85735848,105660.0,105650.0,0.36828742]
[1749452650934,1.85735848,105660.0,105650.0,0.3682969]
[1749452651936,1.85735848,105660.0,105650.0,0.36829692]
[1749452652134,1.85330188,105660.0,105650.0,0.35398801]
[1749452652835,1.85330188,105660.0,105650.0,0.36829691]
[1749452653129,1.85735848,105660.0,105650.0,0.36829691]
[1749452653832,1.85735848,105660.0,105650.0,0.36829876]
[1749452654638,1.85735848,105660.0,105650.0,0.17908406]
[1749452655030,2.21815848,105660.0,105650.0,0.14965604]
[1749452655230,2.21815848,105660.0,105650.0,0.20865279]
[1749452655532,2.21815848,105660.0,105650.0,0.20864987]
[1749452655834,2.21815848,105660.0,105650.0,0.20864999]
[1749452656034,2.33526779,105660.0,105650.0,0.19434204]
[1749452656224,2.33526779,105660.0,105650.0,0.20865017]
[1749452656422,2.39425629,105660.0,105650.0,0.20865017]
[1749452656732,2.39425629,105660.0,105650.0,0.06116813]
[1749452656932,2.48231966,105660.0,105650.0,0.06116813]
[1749452657326,2.48231966,105660.0,105650.0,0.06115804]
[1749452657522,2.57696766,105660.0,105650.0,0.06115804]
[1749452658239,2.57696766,105660.0,105650.0,0.04686]
[1749452658931,2.48890429,105660.0,105650.0,0.06120645]
[1749452659937,2.48890429,105660.0,105650.0,0.06120672]
[1749452660140,2.48890429,105660.0,105650.0,0.06120692]
[1749452660330,2.48890429,105660.0,105650.0,0.06120693]
[1749452661139,2.48890429,105660.0,105650.0,0.06120589]
[1749452661529,2.48890429,105660.0,105650.0,0.06120134]
[1749452661731,0.047312,105640.0,105610.0,0.14876829]
[1749452662038,0.66717771,105620.0,105610.0,0.35155348]
[1749452662241,0.66717771,105620.0,105610.0,0.38355348]
[1749452662435,1.19349771,105620.0,105610.0,0.38355348]
[1749452662638,0.30637771,105620.0,105610.0,0.4168945]
[1749452662834,0.1892684,105620.0,105610.0,0.77765745]
[1749452663043,0.7155884,105620.0,105610.0,0.41685745]
[1749452663237,0.7159884,105620.0,105610.0,0.40356938]
[1749452663542,0.7155884,105620.0,105610.0,0.42002184]
[1749452663732,0.7159884,105620.0,105610.0,0.30272227]
[1749452663937,0.7155884,105620.0,105610.0,0.30272227]
[1749452664132,0.7159884,105620.0,105610.0,0.30272227]
[1749452664536,0.7155884,105620.0,105610.0,0.30272227]
[1749452664835,0.7159884,105620.0,105610.0,0.30272227]
[1749452665037,0.7159884,105620.0,105610.0,0.2892735]
[1749452665234,1.19428428,105620.0,105610.0,0.1932864]
[1749452665437,1.19428428,105620.0,105610.0,0.26988878]
[1749452666442,1.19428428,105620.0,105610.0,0.26888878]
[1749452666646,1.19428428,105620.0,105610.0,0.26788878]
[1749452666944,1.19428428,105620.0,105610.0,0.2680593]
[1749452667145,1.19428428,105620.0,105610.0,0.26805924]
[1749452667441,1.19428428,105620.0,105610.0,0.26805927]
[1749452668548,1.19428428,105620.0,105610.0,0.2543864]
[1749452669350,1.19428428,105620.0,105610.0,0.07876561]
[1749452669834,1.22648428,105620.0,105610.0,0.07876561]
[1749452670036,1.2360337,105620.0,105610.0,0.07876561]
[1749452670245,1.2360337,105620.0,105610.0,0.07876571]
[1749452670641,1.2360337,105620.0,105610.0,0.07876565]
[1749452670945,1.2360337,105620.0,105610.0,0.26805142]
[1749452671145,1.2360337,105620.0,105610.0,0.26805128]
[1749452672146,1.2360337,105620.0,105610.0,0.26810655]
[1749452672346,1.2360337,105620.0,105610.0,0.2543864]
[1749452672543,0.1892864,105610.0,105600.0,0.00014228]
[1749452672846,0.66738228,105610.0,105600.0,0.00014228]
[1749452673039,0.73098228,105610.0,105600.0,0.00014228]
[1749452673643,0.73098228,105610.0,105600.0,0.01473511]
[1749452673841,0.73098228,105610.0,105600.0,0.01773511]
[1749452674148,0.73098228,105610.0,105600.0,0.01773665]
[1749452674348,0.73098228,105610.0,105600.0,0.00314228]
[1749452674749,0.5500864,105610.0,105600.0,0.21004604]
[1749452674949,0.66738228,105610.0,105600.0,0.27534604]
[1749452675150,0.5504864,105610.0,105600.0,0.27534604]
[1749452675344,1.0778464,105610.0,105600.0,0.27534604]
[1749452675552,1.19879888,105610.0,105600.0,0.30784604]
[1749452675746,1.19919888,105610.0,105600.0,0.30784078]
[1749452676052,1.19919888,105610.0,105600.0,0.30784181]
[1749452676349,0.67183888,105610.0,105600.0,0.30784181]
[1749452676658,1.19514228,105610.0,105600.0,0.30784181]
[1749452677151,1.19514228,105610.0,105600.0,0.30784985]
[1749452677845,1.19514228,105610.0,105600.0,0.30797248]
[1749452678050,1.19514228,105610.0,105600.0,0.30797247]
[1749452678652,1.19514228,105610.0,105600.0,0.30797335]
[1749452679445,1.19919888,105610.0,105600.0,0.3079724]
[1749452679748,1.19919888,105610.0,105600.0,0.29324648]
[1749452680154,0.554543,105610.0,105600.0,0.3079757]
[1749452680354,1.19955888,105610.0,105600.0,0.3079757]
[1749452680953,1.19955888,105610.0,105600.0,0.30798281]
[1749452681350,1.19955888,105610.0,105600.0,0.30798838]
[1749452682455,1.082263,105610.0,105600.0,0.30798838]
[1749452682655,1.19550228,105610.0,105600.0,0.29324648]
[1749452682855,1.19550228,105610.0,105600.0,0.30798931]
[1749452683155,1.19550228,105610.0,105600.0,0.30795594]
[1749452683557,1.19955888,105610.0,105600.0,0.30796381]
[1749452684149,1.19955888,105610.0,105600.0,0.30796526]
[1749452684554,1.19550228,105610.0,105600.0,0.30796524]
[1749452684857,1.19550228,105610.0,105600.0,0.39519191]
[1749452685058,1.19550228,105610.0,105600.0,0.39615109]
[1749452685259,1.19550228,105610.0,105600.0,0.40993194]
[1749452685552,1.19955888,105610.0,105600.0,0.40993194]
[1749452686152,1.19955888,105610.0,105600.0,0.40993405]
[1749452686356,1.19955888,105610.0,105600.0,0.40993406]
[1749452686557,1.19550228,105610.0,105600.0,0.40993406]
[1749452686758,1.19550228,105610.0,105600.0,0.40992776]
[1749452686960,1.19550228,105610.0,105600.0,0.40993355]
[1749452687252,1.19550228,105610.0,105600.0,0.38142148]
[1749452687458,1.19550228,105610.0,105600.0,0.40993967]
[1749452687753,0.292343,105610.0,105600.0,0.40993967]
[1749452687959,0.720903,105610.0,105600.0,0.40993967]
[1749452688160,0.721343,105610.0,105600.0,0.40993967]
[1749452688356,0.721343,105610.0,105600.0,0.40984636]
[1749452688562,0.721343,105610.0,105600.0,0.39613191]
[1749452688753,0.7172864,105610.0,105600.0,0.40984482]
[1749452689159,0.7172864,105610.0,105600.0,0.40984479]
[1749452689354,0.7172864,105610.0,105600.0,0.40984464]
[1749452689860,0.721343,105610.0,105600.0,0.52775782]
[1749452690061,0.721343,105610.0,105600.0,0.39513421]
[1749452690361,0.721343,105610.0,105600.0,0.39613159]
[1749452690759,0.721343,105610.0,105600.0,0.40984418]
[1749452690960,0.721343,105610.0,105600.0,0.43958249]
[1749452691363,0.721343,105610.0,105600.0,0.42483797]
[1749452691563,0.721343,105610.0,105600.0,0.43956342]
[1749452691863,0.721343,105610.0,105600.0,0.43956423]
[1749452692058,0.721343,105610.0,105600.0,0.43956422]
[1749452692258,0.721343,105610.0,105600.0,0.42483876]
[1749452692453,0.721343,105610.0,105600.0,0.43956415]
[1749452692661,0.7172864,105610.0,105600.0,0.43956415]
[1749452692858,0.7172864,105610.0,105600.0,0.43956413]
[1749452693363,0.7172864,105610.0,105600.0,0.4248388]
[1749452693564,0.7172864,105610.0,105600.0,0.42581707]
[1749452693864,0.721343,105610.0,105600.0,0.41115979]
[1749452694059,0.721343,105610.0,105600.0,0.42581706]
[1749452694364,0.721343,105610.0,105600.0,0.43949801]
[1749452694767,0.721343,105610.0,105600.0,0.43949872]
[1749452695062,0.721343,105610.0,105600.0,0.43949853]
[1749452695250,0.721343,105610.0,105600.0,0.43949854]
[1749452695660,0.721343,105610.0,105600.0,0.43949851]
[1749452695858,0.7172864,105610.0,105600.0,0.42484155]
[1749452696055,0.7172864,105610.0,105600.0,0.42581741]
[1749452696365,0.7172864,105610.0,105600.0,0.43948509]
[1749452696568,0.7172864,105610.0,105600.0,0.42581741]
[1749452696758,0.721343,105610.0,105600.0,0.42581741]
[1749452696961,0.721343,105610.0,105600.0,0.43948581]
[1749452697260,0.721343,105610.0,105600.0,0.43948638]
[1749452697459,0.721343,105610.0,105600.0,0.41115979]
[1749452697765,0.721343,105610.0,105600.0,0.42482936]
[1749452697965,0.721343,105610.0,105600.0,0.43948758]
[1749452698168,0.83863888,105610.0,105600.0,0.43948758]
[1749452698757,0.83863888,105610.0,105600.0,0.43948816]
[1749452698964,0.83863888,105610.0,105600.0,0.42482994]
[1749452699168,0.83863888,105610.0,105600.0,0.42561392]
[1749452699366,0.83863888,105610.0,105600.0,0.42561378]
[1749452699667,0.83863888,105610.0,105600.0,0.43928423]
[1749452700165,1.19943888,105610.0,105600.0,0.43928416]
[1749452700355,1.29303888,105610.0,105600.0,0.43918489]
[1749452700558,1.29303888,105610.0,105600.0,0.29324648]
[1749452700766,1.29303888,105610.0,105600.0,0.32129061]
[1749452701067,1.29303888,105610.0,105600.0,0.29324648]
[1749452701374,1.29303888,105610.0,105600.0,0.32128222]
[1749452701669,1.29303888,105610.0,105600.0,0.28878316]
[1749452701871,1.29303888,105610.0,105600.0,0.28878384]
[1749452702059,1.29303888,105610.0,105600.0,0.28878541]
[1749452702260,1.29303888,105610.0,105600.0,0.27433385]
[1749452702459,1.29303888,105610.0,105600.0,0.28879042]
[1749452702662,1.29303888,105610.0,105600.0,0.28879218]
[1749452702862,1.29303888,105610.0,105600.0,0.3931164]
[1749452703064,1.29303888,105610.0,105600.0,0.40669356]
[1749452703965,1.29303888,105610.0,105600.0,0.40669999]
[1749452704166,1.29303888,105610.0,105600.0,0.3931164]
[1749452704360,1.29303888,105610.0,105600.0,0.39313925]
[1749452704562,1.29303888,105610.0,105600.0,0.39224341]
[1749452704764,1.29303888,105610.0,105600.0,0.39313924]
[1749452704965,1.29303888,105610.0,105600.0,0.40672275]
[1749452705271,1.29303888,105610.0,105600.0,0.40672267]
[1749452706370,1.29303888,105610.0,105600.0,0.40675329]
[1749452706880,1.29303888,105610.0,105600.0,0.40675034]
[1749452707360,1.29303888,105610.0,105600.0,0.37404856]
[1749452707564,1.29303888,105610.0,105600.0,0.34144856]
[1749452707767,1.29303888,105610.0,105600.0,0.3278361]
[1749452707967,1.29303888,105610.0,105600.0,0.32698066]
[1749452708168,1.29303888,105610.0,105600.0,0.32791528]
[1749452708371,1.29303888,105610.0,105600.0,0.34153612]
[1749452708976,1.29303888,105610.0,105600.0,0.3415367]
[1749452709470,1.29303888,105610.0,105600.0,0.34153638]
[1749452709664,1.29303888,105610.0,105600.0,0.32791586]
[1749452709977,1.29303888,105610.0,105600.0,0.34154426]
[1749452710465,1.29303888,105610.0,105600.0,0.34154425]
[1749452711174,1.29303888,105610.0,105600.0,0.34154778]
[1749452711379,1.29303888,105610.0,105600.0,0.32698377]
[1749452711677,1.29303888,105610.0,105600.0,0.34155334]
[1749452711973,1.29303888,105610.0,105600.0,0.34155323]
[1749452712474,1.29303888,105610.0,105600.0,0.34155335]
[1749452712675,1.29303888,105610.0,105600.0,0.32792429]
[1749452712879,0.93223888,105610.0,105600.0,0.34154856]
[1749452713071,1.29303888,105610.0,105600.0,0.32792429]
[1749452713278,1.29309094,105610.0,105600.0,0.34148763]
[1749452713574,1.29309094,105610.0,105600.0,0.34148776]
[1749452713774,1.29309094,105610.0,105600.0,0.32786359]
[1749452713971,1.29309094,105610.0,105600.0,0.34149426]
[1749452714374,1.29309094,105610.0,105600.0,0.34149172]
[1749452715077,1.29309094,105610.0,105600.0,0.32699046]
[1749452715281,1.29309094,105610.0,105600.0,0.34149143]
[1749452715777,1.29309094,105610.0,105600.0,0.34149284]
[1749452716278,1.41043888,105610.0,105600.0,0.32699037]
[1749452716480,1.41043888,105610.0,105600.0,0.34149367]
[1749452716674,1.41043888,105610.0,105600.0,0.32786369]
[1749452716874,1.29309094,105610.0,105600.0,0.3415635]
[1749452717075,1.29309094,105610.0,105600.0,0.32786369]
[1749452717278,1.29309094,105610.0,105600.0,0.32705974]
[1749452717577,1.29309094,105610.0,105600.0,0.31220781]
[1749452717777,1.41043888,105610.0,105600.0,0.31220772]
[1749452718174,1.41043888,105610.0,105600.0,0.31220807]
[1749452718682,1.41043888,105610.0,105600.0,0.29850818]
[1749452718981,1.41043888,105610.0,105600.0,0.29850718]
[1749452718982,1.29309094,105610.0,105600.0,0.29850718]
[1749452719174,1.29309094,105610.0,105600.0,0.29850551]
[1749452719379,1.29309094,105610.0,105600.0,0.31219827]
[1749452719579,1.29309094,105610.0,105600.0,0.31219706]
[1749452720279,1.29309094,105610.0,105600.0,0.31222167]
[1749452720574,1.29309094,105610.0,105600.0,0.31222158]
[1749452720784,1.29309094,105610.0,105600.0,0.31222153]
[1749452721079,1.29309094,105610.0,105600.0,0.31222126]
[1749452721574,1.29309094,105610.0,105600.0,0.31221448]
[1749452721879,1.29309094,105610.0,105600.0,0.31221443]
[1749452722076,1.29309094,105610.0,105600.0,0.2984944]
[1749452722380,1.29309094,105610.0,105600.0,0.29849447]
[1749452722574,1.29309094,105610.0,105600.0,0.31228155]
[1749452722879,1.29309094,105610.0,105600.0,0.31228145]
[1749452723182,1.29309094,105610.0,105600.0,0.29856144]
[1749452723382,1.29309094,105610.0,105600.0,0.31228133]
[1749452723681,1.29309094,105610.0,105600.0,0.31228586]
[1749452723883,1.29309094,105610.0,105600.0,0.29856597]
[1749452724081,1.29309094,105610.0,105600.0,0.31228515]
[1749452724376,1.29309094,105610.0,105600.0,0.31228508]
[1749452724573,1.29309094,105610.0,105600.0,0.28402111]
[1749452724774,1.29309094,105610.0,105600.0,0.31228512]
[1749452725482,1.29309094,105610.0,105600.0,0.29856618]
[1749452725679,1.29309094,105610.0,105600.0,0.29775431]
[1749452725880,1.29309094,105610.0,105600.0,0.29775426]
[1749452726081,1.29309094,105610.0,105600.0,0.31229931]
[1749452726281,1.29309094,105610.0,105600.0,0.31229912]
[1749452726679,1.29309094,105610.0,105600.0,0.29856616]
[1749452726982,1.29309094,105610.0,105600.0,0.31229922]
[1749452727483,1.29309094,105610.0,105600.0,0.28402111]
[1749452727783,1.29309094,105610.0,105600.0,0.31231534]
[1749452727986,1.29309094,105610.0,105600.0,0.29858241]
[1749452728178,1.29309094,105610.0,105600.0,0.31231529]
[1749452728676,1.29309094,105610.0,105600.0,0.3123167]
[1749452728975,1.29309094,105610.0,105600.0,0.43023075]
[1749452729172,1.29309094,105610.0,105600.0,0.41566806]
[1749452729376,1.29309094,105610.0,105600.0,0.41649787]
[1749452729572,1.29309094,105610.0,105600.0,0.31231822]
[1749452729782,1.29309094,105610.0,105600.0,0.29858456]
[1749452729980,1.29309094,105610.0,105600.0,0.31231806]
[1749452730185,1.29309094,105610.0,105600.0,0.31231791]
[1749452730486,1.29309094,105610.0,105600.0,0.31232127]
[1749452731078,1.29309094,105610.0,105600.0,0.29775804]
[1749452731278,1.29309094,105610.0,105600.0,0.31232124]
[1749452731484,1.29309094,105610.0,105600.0,0.31232656]
[1749452732088,1.29309094,105610.0,105600.0,0.31232638]
[1749452732588,1.29309094,105610.0,105600.0,0.29858404]
[1749452732781,1.29309094,105610.0,105600.0,0.31232589]
[1749452733090,1.29309094,105610.0,105600.0,0.29776292]
[1749452733287,1.29309094,105610.0,105600.0,0.31232578]
[1749452733691,1.29309094,105610.0,105600.0,0.31232605]
[1749452734383,1.29309094,105610.0,105600.0,0.3123261]
[1749452734576,1.29309094,105610.0,105600.0,0.29858755]
[1749452734782,1.29309094,105610.0,105600.0,0.31232967]
[1749452734986,1.29309094,105610.0,105600.0,0.28402111]
[1749452735192,1.29309094,105610.0,105600.0,0.31232943]
[1749452735789,1.29309094,105610.0,105600.0,0.29858744]
[1749452735985,1.29309094,105610.0,105600.0,0.31233059]
[1749452736188,1.29309094,105610.0,105600.0,0.29858744]
[1749452736385,1.29309094,105610.0,105600.0,0.3123292]
[1749452736586,1.29309094,105610.0,105600.0,0.31232887]
[1749452737080,1.29309094,105610.0,105600.0,0.34166775]
[1749452737281,1.29309094,105610.0,105600.0,0.34166713]
[1749452737585,1.29309094,105610.0,105600.0,0.34166556]
[1749452737784,1.29309094,105610.0,105600.0,0.3416655]
[1749452737976,1.29309094,105610.0,105600.0,0.32710105]
[1749452738181,1.29309094,105610.0,105600.0,0.34166496]
[1749452738384,1.29309094,105610.0,105600.0,0.34166531]
[1749452738582,1.29309094,105610.0,105600.0,0.34166542]
[1749452739183,1.29309094,105610.0,105600.0,0.31224823]
[1749452739383,1.29309094,105610.0,105600.0,0.29768426]
[1749452739583,1.29309094,105610.0,105600.0,0.31225058]
[1749452739787,1.29309094,105610.0,105600.0,0.43016389]
[1749452740093,1.29309094,105610.0,105600.0,0.4155984]
[1749452740286,1.29309094,105610.0,105600.0,0.40185611]
[1749452740584,1.29309094,105610.0,105600.0,0.31335999]
[1749452740785,1.29309094,105610.0,105600.0,0.34167139]
[1749452741190,1.29309094,105610.0,105600.0,0.13779971]
[1749452741379,1.41043888,105610.0,105600.0,0.12296641]
[1749452741690,1.29309094,105610.0,105600.0,0.09464581]
[1749452741887,1.41043888,105610.0,105600.0,0.10844112]
[1749452742090,1.41043888,105610.0,105600.0,0.10844109]
[1749452742285,1.29309094,105610.0,105600.0,0.12300943]
[1749452742692,1.29309094,105610.0,105600.0,0.12301302]
[1749452742986,1.29309094,105610.0,105600.0,0.09464581]
[1749452743192,1.29309094,105610.0,105600.0,0.12301418]
[1749452743387,1.29309094,105610.0,105600.0,0.09464581]
[1749452743589,1.29309094,105610.0,105600.0,0.1230142]
[1749452743794,1.29309094,105610.0,105600.0,0.12301421]
[1749452744086,1.29309094,105610.0,105600.0,0.09464581]
[1749452744289,1.29309094,105610.0,105600.0,0.37138492]
[1749452744890,1.29309094,105610.0,105600.0,0.19716055]
[1749452745193,1.29309094,105610.0,105600.0,0.19715828]
[1749452745487,1.29309094,105610.0,105600.0,0.18258549]
[1749452745793,1.29309094,105610.0,105600.0,0.38645764]
[1749452745984,1.29309094,105610.0,105600.0,0.38645132]
[1749452746191,1.29309094,105610.0,105600.0,0.38645186]
[1749452746887,1.29309094,105610.0,105600.0,0.37189955]
[1749452747087,1.29309094,105610.0,105600.0,0.38646637]
[1749452747390,1.29309094,105610.0,105600.0,0.37189947]
[1749452747585,1.29309094,105610.0,105600.0,0.37189924]
[1749452747790,1.29309094,105610.0,105600.0,0.38646578]
[1749452747978,1.29309094,105610.0,105600.0,0.38646561]
[1749452748896,1.29309094,105610.0,105600.0,0.38651943]
[1749452749088,1.29309094,105610.0,105600.0,0.37267753]
[1749452749395,1.29309094,105610.0,105600.0,0.3865005]
[1749452749587,1.29309094,105610.0,105600.0,0.38649987]
[1749452750393,1.29309094,105610.0,105600.0,0.38650343]
[1749452750796,1.29309094,105610.0,105600.0,0.35805726]
[1749452750987,1.29309094,105610.0,105600.0,0.37267999]
[1749452751188,1.175743,105610.0,105600.0,0.38650964]
[1749452751395,1.29309094,105610.0,105600.0,0.38650965]
[1749452751586,1.29309094,105610.0,105600.0,0.3718866]
[1749452751788,1.29309094,105610.0,105600.0,0.38650842]
[1749452751984,1.29309094,105610.0,105600.0,0.37188659]
[1749452752182,1.29309094,105610.0,105600.0,0.38650839]
[1749452752394,1.29309094,105610.0,105600.0,0.37267909]
[1749452752594,1.29309094,105610.0,105600.0,0.38650822]
[1749452752794,0.653183,105610.0,105600.0,0.37188637]
[1749452753093,0.67149094,105610.0,105600.0,0.42338729]
[1749452753398,1.19849094,105610.0,105600.0,0.43897023]
[1749452753589,1.19809094,105610.0,105600.0,0.43810113]
[1749452753789,1.19849094,105610.0,105600.0,0.45271978]
[1749452754196,1.19849094,105610.0,105600.0,0.43810113]
[1749452754398,1.19849094,105610.0,105600.0,0.43809542]
[1749452754594,1.19849094,105610.0,105600.0,0.45271024]
[1749452754793,1.19849094,105610.0,105600.0,0.43896468]
[1749452754995,1.19849094,105610.0,105600.0,0.42434989]
[1749452755192,1.081143,105610.0,105600.0,0.43896468]
[1749452755390,1.19849094,105610.0,105600.0,0.4527079]
[1749452755589,1.19849094,105610.0,105600.0,0.43896238]
[1749452755797,1.19849094,105610.0,105600.0,0.43809544]
[1749452756001,1.19849094,105610.0,105600.0,0.54118935]
[1749452756193,1.19849094,105610.0,105600.0,0.52657635]
[1749452756500,1.19849094,105610.0,105600.0,0.42326282]
[1749452756898,1.19849094,105610.0,105600.0,0.42326274]
[1749452757898,1.19849094,105610.0,105600.0,0.39489846]
[1749452758093,1.19849094,105610.0,105600.0,0.4232622]
[1749452758294,1.19849094,105610.0,105600.0,0.40864772]
[1749452758494,1.19849094,105610.0,105600.0,0.39489846]
[1749452758794,1.19849094,105610.0,105600.0,0.42325992]
[1749452759597,1.19849094,105610.0,105600.0,0.42325988]
[1749452759903,1.19849094,105610.0,105600.0,0.42325939]
[1749452760202,1.19849094,105610.0,105600.0,0.4095102]
[1749452760399,1.19849094,105610.0,105600.0,0.4232589]
[1749452761499,1.19849094,105610.0,105600.0,0.42311998]
[1749452761806,1.19849094,105610.0,105600.0,0.42311994]
[1749452762099,1.19849094,105610.0,105600.0,0.42311992]
[1749452762305,1.19849094,105610.0,105600.0,0.45257135]
[1749452762604,1.19849094,105610.0,105600.0,0.45257089]
[1749452762904,1.19849094,105610.0,105600.0,0.4379595]
[1749452763202,1.19849094,105610.0,105600.0,0.45257138]
[1749452763402,1.19849094,105610.0,105600.0,0.45257134]
[1749452763600,1.19849094,105610.0,105600.0,0.45257077]
[1749452763800,1.19849094,105610.0,105600.0,0.45257027]
[1749452764208,1.19849094,105610.0,105600.0,0.54101801]
[1749452764406,1.19849094,105610.0,105600.0,0.54101746]
[1749452764606,1.19849094,105610.0,105600.0,0.54101517]
[1749452764802,1.19849094,105610.0,105600.0,0.52740642]
[1749452765108,1.19849094,105610.0,105600.0,0.52740623]
[1749452765302,1.19849094,105610.0,105600.0,0.54101378]
[1749452765502,1.19849094,105610.0,105600.0,0.54101373]
[1749452765807,1.19849094,105610.0,105600.0,0.54101375]
[1749452766406,1.19849094,105610.0,105600.0,0.5264053]
[1749452766599,1.19849094,105610.0,105600.0,0.52640959]
[1749452766802,1.19849094,105610.0,105600.0,0.54101843]
[1749452767002,1.19849094,105610.0,105600.0,0.51279763]
[1749452767301,1.19849094,105610.0,105600.0,0.52640956]
[1749452767507,1.23109094,105610.0,105600.0,0.54101754]
[1749452768102,1.23109094,105610.0,105600.0,0.5264092]
[1749452768303,1.23109094,105610.0,105600.0,0.54101343]
[1749452768502,1.23109094,105610.0,105600.0,0.5274025]
[1749452768705,1.23109094,105610.0,105600.0,0.51279763]
[1749452768903,1.23109094,105610.0,105600.0,0.52640859]
[1749452769108,1.23109094,105610.0,105600.0,0.54101346]
[1749452769410,1.23109094,105610.0,105600.0,0.45256572]
[1749452770009,1.23109094,105610.0,105600.0,0.45256484]
[1749452770206,1.23109094,105610.0,105600.0,0.42434989]
[1749452770512,1.23109094,105610.0,105600.0,0.43795964]
[1749452770711,1.23109094,105610.0,105600.0,0.43795961]
[1749452771011,1.23109094,105610.0,105600.0,0.45256483]
[1749452771714,1.23109094,105610.0,105600.0,0.45256535]
[1749452772115,1.23109094,105610.0,105600.0,0.45256383]
[1749452772317,1.23109094,105610.0,105600.0,0.42434989]
[1749452772509,1.23109094,105610.0,105600.0,0.45256314]
[1749452773314,1.23109094,105610.0,105600.0,0.45256706]
[1749452773810,1.23109094,105610.0,105600.0,0.45256899]
[1749452774110,1.23109094,105610.0,105600.0,0.4389601]
[1749452774417,1.23109094,105610.0,105600.0,0.52640034]
[1749452774715,1.23109094,105610.0,105600.0,0.54101452]
[1749452774918,1.23109094,105610.0,105600.0,0.45257332]
[1749452775117,1.23109094,105610.0,105600.0,0.45257308]
[1749452776111,1.29419094,105610.0,105600.0,0.43796037]
[1749452776320,1.29419094,105610.0,105600.0,0.45254787]
[1749452776510,1.29419094,105610.0,105600.0,0.45253341]
[1749452776711,1.29419094,105610.0,105600.0,0.45253633]
[1749452776914,1.29419094,105610.0,105600.0,0.4389655]
[1749452777522,1.29419094,105610.0,105600.0,0.43895231]
[1749452777707,1.29419094,105610.0,105600.0,0.43792763]
[1749452777911,1.29419094,105610.0,105600.0,0.42434989]
[1749452778221,1.29419094,105610.0,105600.0,0.4525282]
[1749452778719,1.29419094,105610.0,105600.0,0.45252912]
[1749452778919,1.29419094,105610.0,105600.0,0.45252918]
[1749452779121,1.29419094,105610.0,105600.0,0.45252949]
[1749452779417,1.29419094,105610.0,105600.0,0.32001321]
[1749452779617,0.76759094,105610.0,105600.0,0.32083677]
[1749452779822,1.29411094,105610.0,105600.0,0.30643658]
[1749452780017,1.29411094,105610.0,105600.0,0.33444067]
[1749452780620,1.29411094,105610.0,105600.0,0.45235398]
[1749452780926,1.29411094,105610.0,105600.0,0.45234999]
[1749452781215,1.29411094,105610.0,105600.0,0.42434989]
[1749452781420,1.29411094,105610.0,105600.0,0.45234042]
[1749452781616,1.29411094,105610.0,105600.0,0.43874833]
[1749452781822,1.29411094,105610.0,105600.0,0.45233625]
[1749452782121,1.29411094,105610.0,105600.0,0.45233626]
[1749452782523,1.29411094,105610.0,105600.0,0.43793782]
[1749452782719,1.29411094,105610.0,105600.0,0.43876274]
[1749452782919,0.93331094,105610.0,105600.0,0.45235067]
[1749452783218,1.29411094,105610.0,105600.0,0.43876274]
[1749452783418,1.29411094,105610.0,105600.0,0.43793778]
[1749452783614,1.29411094,105610.0,105600.0,0.45235063]
[1749452783814,1.29411094,105610.0,105600.0,0.45235067]
[1749452784212,1.29411094,105610.0,105600.0,0.43876274]
[1749452784523,1.29411094,105610.0,105600.0,0.45235369]
[1749452784720,1.29411094,105610.0,105600.0,0.43876585]
[1749452784921,1.29411094,105610.0,105600.0,0.45235371]
[1749452785123,1.29411094,105610.0,105600.0,0.45235372]
[1749452785318,1.29411094,105610.0,105600.0,0.45259369]
[1749452785724,1.29411094,105610.0,105600.0,0.42099369]
[1749452785921,1.29411094,105610.0,105600.0,0.42099375]
[1749452786121,1.29411094,105610.0,105600.0,0.40657747]
[1749452786423,1.29411094,105610.0,105600.0,0.40657751]
[1749452786625,1.29411094,105610.0,105600.0,0.42099343]
[1749452787426,1.29411094,105610.0,105600.0,0.42098509]
[1749452787827,1.29411094,105610.0,105600.0,0.40656917]
[1749452788018,1.29411094,105610.0,105600.0,0.40657612]
[1749452788420,1.29411094,105610.0,105600.0,0.42098856]